fUSD/lending_fUSD_20240820
["ID","MTS","AMOUNT","RATE_DAILY","PERIOD"]
[335331085,1724117444873,-1117.57,0.00010832,2]
[335331086,1724117444882,-500.0,0.00010832,2]
[335331087,1724117444892,-500.0,0.00010832,2]
[335331088,1724117444901,-500.0,0.00010832,2]
[335331089,1724117444911,-500.0,0.00010832,2]
[335331090,1724117444920,-500.0,0.00010832,2]
[335331091,1724117444929,-500.0,0.00010832,2]
[335331092,1724117444940,-3988.96,0.00010832,2]
[335331093,1724117444949,-1314.64,0.00010832,2]
[335331094,1724117444959,-500.0,0.00010832,2]
[335331095,1724117444968,-7784.95,0.00010832,2]
[335331096,1724117444977,-500.0,0.00010832,2]
[335331097,1724117444987,-1118.04,0.00010832,2]
[335331098,1724117444996,-500.0,0.00010832,2]
[335331099,1724117445006,-729.87,0.00010832,2]
[335331100,1724117445015,-500.0,0.00010832,2]
[335331101,1724117445024,-1034.94,0.00010832,2]
[335331102,1724117445033,-500.0,0.00010832,2]
[335331103,1724117445043,-2877.58,0.00010832,2]
[335331104,1724117445052,-500.0,0.00010832,2]
[335331105,1724117445061,-2803.24,0.00010832,2]
[335331106,1724117445070,-748.16,0.00010832,2]
[335331107,1724117445079,-1017.58,0.00010832,2]
[335331108,1724117445090,-6926.58,0.00010832,2]
[335331109,1724117445099,-500.0,0.00010832,2]
[335331110,1724117445107,-896.32,0.00010832,2]
[335331111,1724117445117,-500.0,0.00010832,2]
[335331112,1724117445126,-630.68,0.00010832,2]
[335331113,1724117445135,-1066.87,0.00010832,2]
[335331114,1724117445144,-1204.5,0.00010832,2]
[335331115,1724117445153,-500.0,0.00010832,2]
[335331116,1724117445162,-2665.76,0.00010832,2]
[335331117,1724117445171,-500.0,0.00010832,2]
[335331118,1724117445180,-1107.28,0.00010832,2]
[335331119,1724117445189,-500.0,0.00010832,2]
[335331120,1724117445199,-500.0,0.00010832,2]
[335331121,1724117445207,-284.30253464,0.00010832,2]
[335331122,1724117445220,-1055.00746536,0.00010832,2]
[335331123,1724117445229,-601.30753464,0.00010832,2]
[335331124,1724117446495,-350.9931012,0.00010832,2]
[335331125,1724117446506,-333.91936416,0.00010832,2]
[335331126,1724117446516,-24.67063584,0.00010832,2]
[335331127,1724117446527,-1371.92936416,0.00010832,2]
[335331128,1724117446537,-689.06,0.00010832,2]
[335331129,1724117446547,-500.0,0.00010832,2]
[335331130,1724117446556,-2437.9,0.00010832,2]
[335331131,1724117446566,-500.0,0.00010832,2]
[335331132,1724117446575,-1068.75,0.00010832,2]
[335331133,1724117446584,-500.0,0.00010832,2]
[335331134,1724117446594,-500.0,0.00010832,2]
[335331135,1724117446603,-1055.98200468,0.00010832,2]
[335331136,1724117446615,-1581.52799532,0.00010832,2]
[335331137,1724117446625,-212.83514857,0.00010832,2]
[335331138,1724117446636,-287.16485143,0.00010832,2]
[335331139,1724117446646,-609.01994177,0.00010832,2]
[335331140,1724117446674,-302.0,0.00010832,2]
[335331141,1724117446685,-559.67005823,0.00010832,2]
[335331142,1724117446695,-500.0,0.00010832,2]
[335331143,1724117446705,-500.0,0.00010832,2]
[335331144,1724117446714,-500.0,0.00010832,2]
[335331145,1724117446724,-3055.30774581,0.00010832,2]
[335331146,1724117446736,-1301.33763081,0.00010832,2]
[335331147,1724117446747,-1051.91462338,0.00010832,2]
[335331148,1724117446756,-3512.65,0.00010832,2]
[335331149,1724117446766,-315.41052974,0.00010832,2]
[335331150,1724117446775,-448.22484694,0.00010832,2]
[335331151,1724117446816,-51.77515306,0.00010832,2]
[335331152,1724117446826,-500.0,0.00010832,2]
[335331153,1724117446836,-624.42,0.00010832,2]
[335331154,1724117446847,-1543.62,0.00010832,2]
[335331155,1724117446858,-500.0,0.00010833,2]
[335331156,1724117446875,-500.0,0.00010833,2]
[335331157,1724117446885,-500.0,0.00010833,2]
[335331158,1724117446895,-500.0,0.00010833,2]
[335331159,1724117446905,-500.0,0.00010833,2]
[335331160,1724117446915,-500.0,0.00010833,2]
[335331161,1724117446926,-500.0,0.00010833,2]
[335331162,1724117446935,-500.0,0.00010833,2]
[335331163,1724117446945,-500.0,0.00010833,2]
[335331164,1724117446954,-500.0,0.00010833,2]
[335331165,1724117446964,-500.0,0.00010833,2]
[335331166,1724117446974,-500.0,0.00010833,2]
[335331167,1724117446984,-500.0,0.00010833,2]
[335331168,1724117446994,-89.28962317,0.00010833,2]
[335331169,1724117447006,-410.71037683,0.00010833,2]
[335331170,1724117447016,-5.49212317,0.00010833,2]
[335331171,1724117578850,5662.39,9.624e-05,2]
[335331172,1724117595339,631.02,8.219e-05,2]
[335331173,1724117846904,173.94,9.595e-05,2]
[335331174,1724117847415,8234.81,9.595e-05,2]
[335331175,1724117870103,1602.70162663,9.899e-05,2]
[335331176,1724117899376,171.48,9.602e-05,2]
[335331177,1724117924304,1000.0,9.608e-05,2]
[335331178,1724117950612,155.54379292,9.899e-05,2]
[335331179,1724118028437,262.9,9.602e-05,2]
[335331180,1724118099328,921.92,9.608e-05,2]
[335331181,1724118231831,655.91,8.219e-05,2]
[335331182,1724118268772,7469.12,9.598e-05,2]
[335331183,1724118347630,500.0,9.593e-05,2]
[335331184,1724118400754,200.0,9.594e-05,2]
[335331186,1724118536636,179.78264831,9.899e-05,2]
[335331187,1724118537862,216.53,9.589e-05,2]
[335331198,1724118631587,-155.0,9.943e-05,2]
[335331199,1724118631597,-155.19191297,9.988e-05,2]
[335331200,1724118631606,-451.05,9.994e-05,2]
[335331201,1724118631616,-767.10911948,9.994e-05,2]
[335331202,1724118631628,-307.5,9.994e-05,2]
[335331204,1724118631639,-640.32033015,9.994e-05,2]
[335331205,1724118631649,-137.17566585,9.997e-05,2]
[335331206,1724118631660,-1577.75378377,9.997e-05,2]
[335331207,1724118631670,-300.0,9.999e-05,2]
[335331208,1724118631679,-170.62038791,0.0001,2]
[335331209,1724118631688,-155.27840537,0.0001,2]
[335331210,1724118631698,-173.37484344,0.0001,2]
[335331211,1724118631708,-1710.50630056,0.0001,2]
[335331212,1724118631719,-4.42314906,0.0001,2]
[335331213,1724118631729,-369.00525806,0.00010009,2]
[335331214,1724118631738,-40.04482196,0.00010404,2]
[335331215,1724118631749,-615.77052,0.00010404,2]
[335331216,1724118631761,-71.04322004,0.00010404,2]
[335331217,1724118631771,-425.72677996,0.00010455,2]
[335331218,1724118631804,-230.18322004,0.00010455,2]
[335331220,1724118631813,-259.46182736,0.00010466,2]
[335331222,1724118631825,-84.36817264,0.00010466,2]
[335331224,1724118631834,-150.0,0.00010466,2]
[335331225,1724118631844,-1528.57477329,0.00010471,2]
[335331226,1724118631856,-3283.21008672,0.00010471,2]
[335331227,1724118631866,-1303.1526,0.00010532,2]
[335331228,1724118631878,-150.0,0.00010534,2]
[335331229,1724118631887,-4033.94889068,0.00010535,2]
[335331230,1724118631898,-1530.47860932,0.00010535,2]
[335331231,1724118631907,-801.63,0.00010535,2]
[335331232,1724118631917,-499.99,0.00010535,2]
[335331233,1724118631926,-150.0,0.00010566,2]
[335331234,1724118631935,-150.0,0.00010568,2]
[335331235,1724118631945,-150.0,0.00010571,2]
[335331236,1724118631955,-150.99,0.00010572,2]
[335331237,1724118631964,-150.0,0.00010572,2]
[335331238,1724118631973,-150.0,0.00010574,2]
[335331239,1724118631982,-272.24678801,0.00010576,2]
[335331240,1724118631991,-150.0,0.00010578,2]
[335331241,1724118632001,-150.0,0.00010579,2]
[335331242,1724118632010,-150.0,0.00010579,2]
[335331243,1724118632019,-150.0,0.00010582,2]
[335331244,1724118632029,-150.0,0.00010585,2]
[335331245,1724118632039,-150.0,0.00010589,2]
[335331246,1724118632050,-150.0,0.0001059,2]
[335331247,1724118632059,-33.82047053,0.00010591,2]
[335331248,1724118632070,-116.17952947,0.00010591,2]
[335331249,1724118632081,-150.0,0.00010593,2]
[335331250,1724118632090,-150.0,0.00010597,2]
[335331251,1724118632100,-150.0,0.000106,2]
[335331252,1724118632109,-150.0,0.000106,2]
[335331253,1724118632119,-150.0,0.00010601,2]
[335331254,1724118632128,-150.0,0.00010601,2]
[335331255,1724118632137,-150.0,0.00010604,2]
[335331256,1724118632146,-150.0,0.00010605,2]
[335331257,1724118632156,-150.0,0.00010606,2]
[335331258,1724118632166,-150.0,0.00010616,2]
[335331259,1724118632175,-150.0,0.0001062,2]
[335331260,1724118632185,-150.0,0.00010622,2]
[335331261,1724118632195,-150.0,0.00010622,2]
[335331262,1724118632204,-150.0,0.00010624,2]
[335331263,1724118632214,-150.0,0.00010625,2]
[335331264,1724118632224,-104.0634455,0.0001063,2]
[335331265,1724118632236,-45.9365545,0.0001063,2]
[335331266,1724118632245,-447.50623759,0.00010632,2]
[335331267,1724118632257,-4268.9701667,0.00010632,2]
[335331268,1724118632269,-521.44331218,0.00010632,2]
[335331269,1724118632280,-287.37338502,0.00010632,2]
[335331270,1724118632293,-2827.2345056,0.00010632,2]
[335331271,1724118637523,-155.0,9.941e-05,2]
[335331274,1724118637532,-155.0982169,9.988e-05,2]
[335331276,1724118637541,-4903.1434275,0.00010632,2]
[335331277,1724118637553,-10057.58,0.00010632,2]
[335331279,1724118637564,-6441.58035137,0.00010632,2]
[335331281,1724118637678,-4852.6012,0.00010632,2]
[335331282,1724118637689,-10535.96684458,0.00010632,2]
[335331283,1724118637700,-1043.64469996,0.00010632,2]
[335331284,1724118637713,-772.44109258,0.00010632,2]
[335331285,1724118637724,-442.25,0.00010632,2]
[335331286,1724118637735,-515.28705452,0.00010632,2]
[335331287,1724118637746,-1134.70787623,0.00010632,2]
[335331288,1724118637757,-763.94545483,0.00010632,2]
[335331289,1724118637768,-39655.71690585,0.00010632,2]
[335331290,1724118637779,-4830.05462,0.00010632,2]
[335331291,1724118637790,-1248.82727493,0.00010632,2]
[335331292,1724118637802,-19137.89899619,0.00010632,2]
[335331293,1724118637812,-3861.57904239,0.00010632,2]
[335331294,1724118637824,-1167.56978197,0.00010632,2]
[335331295,1724118637835,-35849.47465954,0.00010632,2]
[335331297,1724118637847,-7310.16588606,0.00010632,2]
[335331298,1724118637858,-307.07755376,0.00010632,2]
[335331300,1724118637869,-6279.17202297,0.00010632,2]
[335331449,1724118639569,-24104.6103854,0.00010632,2]
[335331452,1724118639748,-540.18000005,0.00010632,2]
[335331453,1724118639760,-680.67,0.00010632,2]
[335331454,1724118639771,-3593.08737091,0.00010632,2]
[335331455,1724118639784,-1809.41,0.00010632,2]
[335331456,1724118639796,-2352.05509603,0.00010632,2]
[335331457,1724118639809,-1079.800005,0.00010632,2]
[335331458,1724118639939,-503.4787228,0.00010632,2]
[335331459,1724118639951,-347.78074878,0.00010632,2]
[335331460,1724118639963,-17049.04648691,0.00010632,2]
[335331461,1724118639976,-5520.4318433,0.00010632,2]
[335331462,1724118639987,-607.01399978,0.00010632,2]
[335331463,1724118640000,-322.85018007,0.00010632,2]
[335331464,1724118640220,-307.46014093,0.00010632,2]
[335331700,1724118642674,-883.32723249,0.00010632,2]
[335331704,1724118642685,-630.18302999,0.00010632,2]
[335331708,1724118642695,-297.59077079,0.00010632,2]
[335331785,1724118643283,-2694.80145435,0.00010632,2]
[335331790,1724118643311,-311.308985,0.00010632,2]
[335331793,1724118643323,-11901.7011951,0.00010632,2]
[335331795,1724118643332,-500.0,0.00010632,2]
[335331797,1724118643341,-150.0,0.00010633,2]
[335331799,1724118643351,-329.86260036,0.00010633,2]
[335331801,1724118643359,-150.0,0.00010634,2]
[335331803,1724118643368,-150.0,0.00010635,2]
[335331805,1724118643377,-150.0,0.00010637,2]
[335331807,1724118643386,-150.0,0.00010639,2]
[335331809,1724118643394,-150.0,0.00010645,2]
[335331811,1724118643403,-150.0,0.00010652,2]
[335331812,1724118643412,-1500.0,0.00010653,2]
[335331814,1724118643421,-150.0,0.00010655,2]
[335331816,1724118643430,-150.0,0.00010656,2]
[335331818,1724118643439,-150.0,0.00010658,2]
[335331820,1724118643448,-150.0,0.00010662,2]
[335331822,1724118643457,-150.0,0.00010666,2]
[335331824,1724118643467,-150.0,0.00010673,2]
[335331825,1724118643477,-150.0,0.00010676,2]
[335331828,1724118643486,-150.0,0.00010678,2]
[335331829,1724118643495,-150.0,0.00010678,2]
[335331831,1724118643505,-150.0,0.00010679,2]
[335331833,1724118643514,-185.68843642,0.00010684,2]
[335331835,1724118643523,-502.89,0.00010684,2]
[335331837,1724118643532,-500.0,0.00010684,2]
[335331839,1724118643541,-500.0,0.00010684,2]
[335331841,1724118643550,-300.17223434,0.00010684,2]
[335331843,1724118643571,-199.82776566,0.00010684,2]
[335331845,1724118643581,-500.0,0.00010684,2]
[335331847,1724118643590,-978.81,0.00010684,2]
[335331849,1724118643599,-500.0,0.00010684,2]
[335331850,1724118643608,-500.0,0.00010684,2]
[335331852,1724118643617,-500.0,0.00010684,2]
[335331854,1724118643626,-500.0,0.00010684,2]
[335331856,1724118643635,-500.0,0.00010684,2]
[335331858,1724118643644,-500.0,0.00010684,2]
[335331860,1724118643653,-910.41,0.00010684,2]
[335331862,1724118643664,-979.93,0.00010684,2]
[335331863,1724118643673,-2459.2,0.00010684,2]
[335331865,1724118643682,-1350.67,0.00010684,2]
[335331867,1724118643691,-641.46,0.00010684,2]
[335331869,1724118643700,-500.0,0.00010684,2]
[335331871,1724118643710,-899.67,0.00010684,2]
[335331873,1724118643719,-500.0,0.00010684,2]
[335331875,1724118643727,-500.0,0.00010684,2]
[335331876,1724118643737,-500.0,0.00010684,2]
[335331878,1724118643745,-500.0,0.00010684,2]
[335331880,1724118643754,-6099.17,0.00010684,2]
[335331882,1724118643764,-500.0,0.00010684,2]
[335331884,1724118643773,-161.40805729,0.00010684,2]
[335331886,1724118643782,-500.0,0.00010684,2]
[335331888,1724118643791,-951.63,0.00010684,2]
[335331889,1724118643800,-397.1916253,0.00010684,2]
[335331891,1724118643815,-2562.26,0.00010684,2]
[335331893,1724118643824,-655.79,0.00010684,2]
[335331895,1724118643833,-786.25,0.00010684,2]
[335331897,1724118643843,-273.65819687,0.00010684,2]
[335331899,1724118643852,-869.08,0.00010684,2]
[335331901,1724118643861,-1129.07,0.00010684,2]
[335331903,1724118643870,-163.32444406,0.00010684,2]
[335331905,1724118643883,-385.58583792,0.00010684,2]
[335331907,1724118643892,-500.0,0.00010684,2]
[335331908,1724118643901,-1060.89,0.00010684,2]
[335331910,1724118643910,-2137.82,0.00010684,2]
[335331912,1724118643919,-500.0,0.00010684,2]
[335331914,1724118643928,-500.0,0.00010684,2]
[335331916,1724118643938,-1288.58,0.00010684,2]
[335331918,1724118643948,-500.0,0.00010684,2]
[335331920,1724118643959,-1254.29,0.00010684,2]
[335331922,1724118643969,-500.0,0.00010684,2]
[335331924,1724118643978,-4732.49,0.00010684,2]
[335331926,1724118643989,-356.05658759,0.00010684,2]
[335331928,1724118643999,-500.0,0.00010684,2]
[335331930,1724118644009,-1267.68,0.00010684,2]
[335331932,1724118644019,-500.0,0.00010684,2]
[335331934,1724118644028,-607.78,0.00010684,2]
[335331935,1724118644037,-3073.57,0.00010684,2]
[335331937,1724118644047,-500.0,0.00010684,2]
[335331939,1724118644061,-500.0,0.00010684,2]
[335331940,1724118644071,-500.0,0.00010684,2]
[335331942,1724118644080,-500.0,0.00010684,2]
[335331944,1724118644089,-500.0,0.00010684,2]
[335331946,1724118644098,-181.62235118,0.00010684,2]
[335331948,1724118644107,-500.0,0.00010684,2]
[335331950,1724118644116,-1173.39,0.00010684,2]
[335331952,1724118644125,-3494.69,0.00010684,2]
[335331953,1724118644135,-500.0,0.00010684,2]
[335331956,1724118644144,-500.0,0.00010684,2]
[335331957,1724118644153,-1151.81,0.00010684,2]
[335331959,1724118644162,-936.29,0.00010684,2]
[335331961,1724118644171,-2311.84,0.00010684,2]
[335331963,1724118644180,-546.37,0.00010684,2]
[335331965,1724118644189,-6830.53,0.00010684,2]
[335331967,1724118644198,-500.0,0.00010684,2]
[335331969,1724118644208,-150.0,0.00010689,2]
[335331971,1724118644217,-1500.0,0.0001069,2]
[335331973,1724118644226,-150.0,0.00010696,2]
[335331975,1724118644236,-150.0,0.000107,2]
[335331977,1724118644245,-167.42,0.000107,2]
[335331979,1724118644254,-150.0,0.000107,2]
[335331981,1724118644264,-150.0,0.00010709,2]
[335331982,1724118644273,-150.0,0.0001071,2]
[335331984,1724118644282,-150.0,0.00010713,2]
[335331986,1724118644291,-1013.07794,0.0001072,2]
[335331988,1724118644301,-150.0,0.00010722,2]
[335331990,1724118644314,-150.0,0.00010723,2]
[335331992,1724118644323,-150.0,0.00010723,2]
[335331994,1724118644332,-152.31,0.00010724,2]
[335331996,1724118644341,-150.0,0.00010725,2]
[335331998,1724118644351,-150.0,0.00010726,2]
[335332000,1724118644360,-7073.69938302,0.00010728,2]
[335332002,1724118644369,-150.0,0.00010729,2]
[335332004,1724118644378,-500.0,0.00010731,2]
[335332006,1724118644387,-500.0,0.00010731,2]
[335332008,1724118644396,-500.0,0.00010731,2]
[335332010,1724118644405,-500.0,0.00010731,2]
[335332012,1724118644414,-697.26,0.00010731,2]
[335332029,1724118644577,-503.81311871,0.00010731,2]
[335332032,1724118644593,-500.24273059,0.00010732,2]
[335332034,1724118644603,-500.0,0.00010732,2]
[335332035,1724118644612,-500.0,0.00010732,2]
[335332037,1724118644621,-500.0,0.00010732,2]
[335332039,1724118644630,-649.31841182,0.00010732,2]
[335332041,1724118644639,-697.26,0.00010732,2]
[335332043,1724118644650,-150.0,0.00010733,2]
[335332045,1724118644659,-502.89,0.00010733,2]
[335332047,1724118644668,-500.0,0.00010733,2]
[335332048,1724118644677,-500.0,0.00010733,2]
[335332050,1724118644686,-500.0,0.00010733,2]
[335332052,1724118644695,-500.0,0.00010733,2]
[335332054,1724118644704,-978.81,0.00010733,2]
[335332056,1724118644713,-500.0,0.00010733,2]
[335332058,1724118644722,-500.0,0.00010733,2]
[335332060,1724118644731,-500.0,0.00010733,2]
[335332062,1724118644739,-500.0,0.00010733,2]
[335332064,1724118644748,-500.0,0.00010733,2]
[335332066,1724118644757,-500.0,0.00010733,2]
[335332067,1724118644766,-910.41,0.00010733,2]
[335332070,1724118644776,-979.93,0.00010733,2]
[335332072,1724118644785,-2459.2,0.00010733,2]
[335332073,1724118644795,-1350.67,0.00010733,2]
[335332075,1724118644806,-641.46,0.00010733,2]
[335332077,1724118644815,-500.0,0.00010733,2]
[335332079,1724118644824,-899.67,0.00010733,2]
[335332081,1724118644834,-500.0,0.00010733,2]
[335332083,1724118644843,-500.0,0.00010733,2]
[335332085,1724118644851,-500.0,0.00010733,2]
[335332087,1724118644860,-500.0,0.00010733,2]
[335332089,1724118644870,-6099.17,0.00010733,2]
[335332091,1724118644883,-500.0,0.00010733,2]
[335332092,1724118644892,-500.0,0.00010733,2]
[335332094,1724118644901,-951.63,0.00010733,2]
[335332096,1724118644910,-2562.26,0.00010733,2]
[335332098,1724118644920,-655.79,0.00010733,2]
[335332100,1724118644929,-786.25,0.00010733,2]
[335332102,1724118644938,-869.08,0.00010733,2]
[335332104,1724118644948,-1129.07,0.00010733,2]
[335332106,1724118644957,-500.0,0.00010733,2]
[335332108,1724118644967,-1060.89,0.00010733,2]
[335332109,1724118644975,-2137.82,0.00010733,2]
[335332111,1724118644984,-470.9073997,0.00010733,2]
[335332113,1724118644993,-500.0,0.00010733,2]
[335332115,1724118645002,-1288.58,0.00010733,2]
[335332117,1724118645012,-500.0,0.00010733,2]
[335332119,1724118645021,-1254.29,0.00010733,2]
[335332120,1724118645030,-500.0,0.00010733,2]
[335332122,1724118645040,-4732.49,0.00010733,2]
[335332124,1724118645049,-500.0,0.00010733,2]
[335332126,1724118645060,-1267.68,0.00010733,2]
[335332128,1724118645070,-619.06570487,0.00010733,2]
[335332130,1724118645079,-607.78,0.00010733,2]
[335332132,1724118645089,-3073.57,0.00010733,2]
[335332133,1724118645098,-500.0,0.00010733,2]
[335332134,1724118645107,-523.2089817,0.00010733,2]
[335332135,1724118645116,-500.0,0.00010733,2]
[335332136,1724118645125,-500.0,0.00010733,2]
[335332137,1724118645135,-500.0,0.00010733,2]
[335332138,1724118645144,-500.0,0.00010733,2]
[335332139,1724118645153,-1173.39,0.00010733,2]
[335332140,1724118645162,-3494.69,0.00010733,2]
[335332141,1724118645171,-500.0,0.00010733,2]
[335332142,1724118645181,-500.0,0.00010733,2]
[335332143,1724118645190,-1151.81,0.00010733,2]
[335332144,1724118645199,-936.29,0.00010733,2]
[335332145,1724118645208,-2311.84,0.00010733,2]
[335332147,1724118645218,-546.37,0.00010733,2]
[335332149,1724118645227,-6830.53,0.00010733,2]
[335332151,1724118645236,-500.0,0.00010733,2]
[335332152,1724118645245,-2996.1686,0.00010734,2]
[335332154,1724118645254,-100000.0,0.00010734,2]
[335332156,1724118645263,-556.6574,0.00010734,2]
[335332158,1724118645273,-7500.0,0.00010734,2]
[335332160,1724118645282,-150.0,0.00010734,2]
[335332162,1724118645292,-206.62530958,0.00010734,2]
[335332164,1724118645301,-171.02524516,0.00010735,2]
[335332166,1724118645313,-169.25732217,0.00010735,2]
[335332168,1724118645323,-150.0,0.00010738,2]
[335332170,1724118645333,-150.0,0.00010739,2]
[335332172,1724118645342,-150.0,0.00010752,2]
[335332174,1724118645351,-150.0,0.00010753,2]
[335332176,1724118645361,-150.0,0.00010755,2]
[335332178,1724118645370,-150.0,0.00010757,2]
[335332180,1724118645379,-150.0,0.00010759,2]
[335332182,1724118645388,-150.0,0.00010764,2]
[335332184,1724118645398,-150.0,0.00010767,2]
[335332186,1724118645407,-150.0,0.00010767,2]
[335332188,1724118645416,-150.0,0.00010768,2]
[335332190,1724118645427,-1512.52138679,0.00010772,2]
[335332192,1724118645439,-150.0,0.00010776,2]
[335332194,1724118645449,-150.0,0.00010777,2]
[335332196,1724118645458,-150.0,0.00010778,2]
[335332198,1724118645468,-150.0,0.00010779,2]
[335332200,1724118645477,-150.0,0.00010781,2]
[335332202,1724118645486,-150.0,0.00010783,2]
[335332204,1724118645497,-150.0,0.00010785,2]
[335332206,1724118645506,-1638.75630197,0.00010787,2]
[335332208,1724118645515,-150.0,0.00010789,2]
[335332209,1724118645528,-150.0,0.00010791,2]
[335332211,1724118645539,-150.0,0.00010792,2]
[335332213,1724118645549,-150.0,0.00010793,2]
[335332215,1724118645559,-200.0,0.00010793,2]
[335332217,1724118645568,-150.0,0.00010796,2]
[335332219,1724118645579,-150.0,0.00010798,2]
[335332221,1724118645588,-150.0,0.000108,2]
[335332223,1724118645598,-150.0,0.00010801,2]
[335332226,1724118645609,-262.9,0.00010802,2]
[335332228,1724118645619,-2300.0,0.00010803,2]
[335332230,1724118645628,-150.0,0.00010804,2]
[335332232,1724118645637,-150.0,0.00010805,2]
[335332234,1724118645647,-150.0,0.00010807,2]
[335332236,1724118645655,-717.0,0.00010808,2]
[335332239,1724118645664,-1000.0,0.00010809,2]
[335332242,1724118645673,-150.0,0.00010809,2]
[335332245,1724118645683,-150.0,0.0001081,2]
[335332247,1724118645693,-150.0,0.00010812,2]
[335332249,1724118645702,-151.05109231,0.00010815,2]
[335332251,1724118645711,-171.02524514,0.00010818,2]
[335332252,1724118645722,-150.0,0.00010819,2]
[335332255,1724118645732,-150.0,0.0001082,2]
[335332256,1724118645742,-810.0,0.0001082,2]
[335332259,1724118645752,-1500.0,0.00010821,2]
[335332261,1724118645761,-150.0,0.00010822,2]
[335332263,1724118645771,-150.0,0.00010824,2]
[335332265,1724118645781,-150.0,0.00010825,2]
[335332267,1724118645791,-150.0,0.00010825,2]
[335332269,1724118645802,-150.0,0.00010826,2]
[335332271,1724118645814,-150.0,0.00010827,2]
[335332273,1724118645824,-500.0,0.00010829,2]
[335332275,1724118645834,-150.0,0.00010831,2]
[335332277,1724118645843,-244.20843564,0.00010832,2]
[335332279,1724118645853,-500.0,0.00010832,2]
[335332281,1724118645862,-500.0,0.00010832,2]
[335332283,1724118645872,-150.0,0.00010832,2]
[335332285,1724118645883,-697.26,0.00010832,2]
[335332287,1724118645892,-413.32982156,0.00010833,2]
[335332289,1724118645901,-1051.141743,0.00010833,2]
[335332291,1724118645910,-500.0,0.00010833,2]
[335332293,1724118645920,-500.0,0.00010833,2]
[335332294,1724118645929,-502.89,0.00010833,2]
[335332296,1724118645939,-150.0,0.00010833,2]
[335332298,1724118645949,-500.0,0.00010833,2]
[335332300,1724118645959,-500.0,0.00010833,2]
[335332302,1724118645968,-500.0,0.00010833,2]
[335332304,1724118645977,-500.0,0.00010833,2]
[335332306,1724118645986,-978.81,0.00010833,2]
[335332308,1724118645995,-500.0,0.00010833,2]
[335332310,1724118646004,-500.0,0.00010833,2]
[335332312,1724118646014,-500.0,0.00010833,2]
[335332314,1724118646024,-500.0,0.00010833,2]
[335332315,1724118646034,-500.0,0.00010833,2]
[335332317,1724118646044,-697.26,0.00010833,2]
[335332319,1724118646053,-500.0,0.00010833,2]
[335332321,1724118646063,-910.41,0.00010833,2]
[335332323,1724118646073,-979.93,0.00010833,2]
[335332325,1724118646082,-2459.2,0.00010833,2]
[335332327,1724118646091,-1350.67,0.00010833,2]
[335332329,1724118646100,-641.46,0.00010833,2]
[335332330,1724118646109,-500.0,0.00010833,2]
[335332332,1724118646118,-899.67,0.00010833,2]
[335332334,1724118646127,-500.0,0.00010833,2]
[335332336,1724118646137,-500.0,0.00010833,2]
[335332338,1724118646146,-500.0,0.00010833,2]
[335332340,1724118646155,-500.0,0.00010833,2]
[335332341,1724118646165,-6099.17,0.00010833,2]
[335332343,1724118646174,-500.0,0.00010833,2]
[335332345,1724118646183,-500.0,0.00010833,2]
[335332347,1724118646193,-951.63,0.00010833,2]
[335332349,1724118646202,-2562.26,0.00010833,2]